[Event "Live Chess"]
[Site "Chess.com"]
[Date "2021.04.28"]
[Round "6"]
[White "microbear"]
[Black "GGuseinov"]
[Result "0-1"]
[CurrentPosition "8/8/pb4p1/1p5p/1Pp1p1kP/2P1KbP1/1P6/4B1N1 w - -"]
[Timezone "UTC"]
[ECO "B36"]
[ECOUrl "https://www.chess.com/openings/Sicilian-Defense-Old-Sicilian-Open-Accelerated-Dragon-Variation"]
[UTCDate "2021.04.28"]
[UTCTime "03:01:34"]
[WhiteElo "2203"]
[BlackElo "2674"]
[TimeControl "2100+2"]
[Termination "GGuseinov won by resignation"]
[StartTime "03:01:34"]
[EndDate "2021.04.28"]
[EndTime "04:06:45"]
[Link "https://www.chess.com/game/live/13317742671"]

1. e4 {[%clk 0:34:56.9]} 1... c5 {[%clk 0:35:00.2]} 2. Nf3 {[%clk 0:34:57]} 2... g6 {[%clk 0:34:59.6]} 3. d4 {[%clk 0:34:55.5]} 3... cxd4 {[%clk 0:35:00.8]} 4. Nxd4 {[%clk 0:34:57]} 4... Nc6 {[%clk 0:34:59.7]} 5. Nc3 {[%clk 0:34:52]} 5... Bg7 {[%clk 0:35:00.3]} 6. Be3 {[%clk 0:34:52.1]} 6... Nf6 {[%clk 0:35:00.4]} 7. Bc4 {[%clk 0:34:49.3]} 7... O-O {[%clk 0:34:17.9]} 8. Bb3 {[%clk 0:32:52.4]} 8... d6 {[%clk 0:34:12.7]} 9. h3 {[%clk 0:32:47]} 9... Na5 {[%clk 0:34:03.4]} 10. O-O {[%clk 0:31:39.5]} 10... b6 {[%clk 0:34:00.6]} 11. Qd3 {[%clk 0:29:28.8]} 11... Nxb3 {[%clk 0:32:34.7]} 12. axb3 {[%clk 0:29:23.2]} 12... Bb7 {[%clk 0:32:35.8]} 13. b4 {[%clk 0:24:36.5]} 13... a6 {[%clk 0:31:14]} 14. f4 {[%clk 0:20:00.2]} 14... Qc7 {[%clk 0:30:00.9]} 15. Rfc1 {[%clk 0:14:41.2]} 15... e5 {[%clk 0:28:08.4]} 16. Nf3 {[%clk 0:13:04.5]} 16... Nxe4 {[%clk 0:27:22.1]} 17. Nxe4 {[%clk 0:11:15.7]} 17... d5 {[%clk 0:27:09.6]} 18. Nf6+ {[%clk 0:10:35]} 18... Bxf6 {[%clk 0:26:52.9]} 19. fxe5 {[%clk 0:10:35]} 19... Bg7 {[%clk 0:26:40.1]} 20. Qd4 {[%clk 0:08:54.2]} 20... b5 {[%clk 0:24:48.2]} 21. c3 {[%clk 0:08:38.3]} 21... Rfe8 {[%clk 0:23:46.3]} 22. Bf4 {[%clk 0:08:19.7]} 22... Qd7 {[%clk 0:23:40.3]} 23. Re1 {[%clk 0:05:48.2]} 23... Rac8 {[%clk 0:23:31.4]} 24. Qd3 {[%clk 0:05:24]} 24... Qc7 {[%clk 0:22:27.1]} 25. Re2 {[%clk 0:04:43.1]} 25... Qc4 {[%clk 0:21:57.4]} 26. Qxc4 {[%clk 0:04:35.8]} 26... dxc4 {[%clk 0:21:56.7]} 27. Nd4 {[%clk 0:04:29]} 27... Rcd8 {[%clk 0:20:36.7]} 28. Kh2 {[%clk 0:04:03.8]} 28... Bc8 {[%clk 0:20:08.8]} 29. Rae1 {[%clk 0:03:42.3]} 29... Be6 {[%clk 0:19:24.8]} 30. Ra1 {[%clk 0:03:29.5]} 30... Bc8 {[%clk 0:19:25.3]} 31. Rae1 {[%clk 0:03:30.1]} 31... Rd5 {[%clk 0:18:58]} 32. Kg3 {[%clk 0:03:12.6]} 32... Be6 {[%clk 0:17:56.6]} 33. Ra1 {[%clk 0:03:03.4]} 33... Ra8 {[%clk 0:17:42.5]} 34. Kf3 {[%clk 0:02:54.3]} 34... Rd7 {[%clk 0:17:30.5]} 35. Kf2 {[%clk 0:02:27.1]} 35... Rd5 {[%clk 0:17:12]} 36. Ree1 {[%clk 0:02:18.5]} 36... Bf8 {[%clk 0:16:34.3]} 37. Red1 {[%clk 0:02:06.4]} 37... Bd7 {[%clk 0:16:07]} 38. Ke3 {[%clk 0:01:47.7]} 38... Be8 {[%clk 0:14:56.6]} 39. Kf2 {[%clk 0:01:47.4]} 39... Bg7 {[%clk 0:14:01.8]} 40. Nf3 {[%clk 0:01:47.7]} 40... Bc6 {[%clk 0:14:00.2]} 41. Rxd5 {[%clk 0:01:46.1]} 41... Bxd5 {[%clk 0:14:02.1]} 42. Nd4 {[%clk 0:01:46.6]} 42... Bb7 {[%clk 0:13:58.8]} 43. g3 {[%clk 0:01:39]} 43... Bf8 {[%clk 0:13:12]} 44. Re1 {[%clk 0:01:21.8]} 44... Be7 {[%clk 0:12:56.9]} 45. e6 {[%clk 0:01:19.3]} 45... f6 {[%clk 0:12:52.9]} 46. Ke2 {[%clk 0:01:10.4]} 46... Kf8 {[%clk 0:12:29.8]} 47. Kd2 {[%clk 0:01:11.4]} 47... Ke8 {[%clk 0:12:30.9]} 48. Kc2 {[%clk 0:01:12]} 48... Rd8 {[%clk 0:12:15.2]} 49. h4 {[%clk 0:01:11.6]} 49... h5 {[%clk 0:12:13.1]} 50. Kc1 {[%clk 0:01:11.3]} 50... Rd5 {[%clk 0:11:22.7]} 51. Kc2 {[%clk 0:01:09.9]} 51... Bd8 {[%clk 0:11:13.2]} 52. Kc1 {[%clk 0:01:09.9]} 52... Ke7 {[%clk 0:10:55.7]} 53. Kc2 {[%clk 0:01:03.8]} 53... Bb6 {[%clk 0:10:53]} 54. Be3 {[%clk 0:00:55.9]} 54... Bc7 {[%clk 0:10:13.8]} 55. Bf2 {[%clk 0:00:53.4]} 55... Re5 {[%clk 0:09:53.2]} 56. Rxe5 {[%clk 0:00:48.7]} 56... fxe5 {[%clk 0:09:49.5]} 57. Ne2 {[%clk 0:00:45.7]} 57... Kxe6 {[%clk 0:09:47.9]} 58. Kd2 {[%clk 0:00:45.5]} 58... Kf5 {[%clk 0:09:40.9]} 59. Ng1 {[%clk 0:00:42.7]} 59... Kg4 {[%clk 0:09:35.3]} 60. Ke3 {[%clk 0:00:39.4]} 60... Bg2 {[%clk 0:09:29.8]} 61. Ke2 {[%clk 0:00:31.2]} 61... e4 {[%clk 0:09:25.6]} 62. Be1 {[%clk 0:00:30.5]} 62... Bf3+ {[%clk 0:09:22.1]} 63. Ke3 {[%clk 0:00:28.2]} 63... Bb6+ {[%clk 0:09:22.6]} 0-1

[Event "Live Chess"]
[Site "Chess.com"]
[Date "2021.04.28"]
[Round "6"]
[White "BrianEscalante"]
[Black "jij2018"]
[Result "1-0"]
[CurrentPosition "3r4/KP2kp1p/5p2/P7/6P1/5P2/3p3P/3R4 b - -"]
[Timezone "UTC"]
[ECO "B54"]
[ECOUrl "https://www.chess.com/openings/Sicilian-Defense-Open-Prins-Variation-5...e5-6.Nb3-d5"]
[UTCDate "2021.04.28"]
[UTCTime "03:01:29"]
[WhiteElo "2542"]
[BlackElo "2242"]
[TimeControl "2100+2"]
[Termination "BrianEscalante won by resignation"]
[StartTime "03:01:29"]
[EndDate "2021.04.28"]
[EndTime "04:10:30"]
[Link "https://www.chess.com/game/live/13317743255"]

1. e4 {[%clk 0:34:47.8]} 1... c5 {[%clk 0:34:48.2]} 2. Nf3 {[%clk 0:33:39.3]} 2... d6 {[%clk 0:34:42.1]} 3. d4 {[%clk 0:33:14.7]} 3... cxd4 {[%clk 0:34:01.2]} 4. Nxd4 {[%clk 0:33:11.7]} 4... Nf6 {[%clk 0:34:01.9]} 5. f3 {[%clk 0:33:10]} 5... e5 {[%clk 0:34:01.2]} 6. Nb3 {[%clk 0:33:11]} 6... d5 {[%clk 0:33:51.5]} 7. Bg5 {[%clk 0:33:11.3]} 7... Be6 {[%clk 0:33:50.7]} 8. Bxf6 {[%clk 0:33:11]} 8... gxf6 {[%clk 0:33:51.2]} 9. exd5 {[%clk 0:33:12.1]} 9... Qxd5 {[%clk 0:33:51.3]} 10. Qxd5 {[%clk 0:33:12.3]} 10... Bxd5 {[%clk 0:33:52.1]} 11. Nc3 {[%clk 0:33:13.9]} 11... Be6 {[%clk 0:33:51.7]} 12. O-O-O {[%clk 0:33:15.4]} 12... Nc6 {[%clk 0:33:48]} 13. Bb5 {[%clk 0:33:16.8]} 13... Ke7 {[%clk 0:32:21.2]} 14. Nd5+ {[%clk 0:33:17]} 14... Bxd5 {[%clk 0:32:20.5]} 15. Rxd5 {[%clk 0:33:18.9]} 15... Bh6+ {[%clk 0:32:10.6]} 16. Kb1 {[%clk 0:33:19.3]} 16... Rad8 {[%clk 0:32:06.6]} 17. Bxc6 {[%clk 0:33:20.2]} 17... bxc6 {[%clk 0:32:06.6]} 18. Ra5 {[%clk 0:33:21.8]} 18... Rd7 {[%clk 0:31:59.4]} 19. Ra6 {[%clk 0:29:16]} 19... Rc8 {[%clk 0:30:06.3]} 20. c4 {[%clk 0:28:24.5]} 20... Be3 {[%clk 0:28:59.7]} 21. Re1 {[%clk 0:28:15.6]} 21... Bb6 {[%clk 0:26:46.6]} 22. Kc2 {[%clk 0:23:18.7]} 22... Kf8 {[%clk 0:23:55.1]} 23. g4 {[%clk 0:16:45.3]} 23... Bd4 {[%clk 0:20:57.8]} 24. Na5 {[%clk 0:11:15.8]} 24... Rdc7 {[%clk 0:18:35.4]} 25. b4 {[%clk 0:10:57.1]} 25... Kg7 {[%clk 0:16:25.9]} 26. Nb3 {[%clk 0:07:44.9]} 26... Rd7 {[%clk 0:13:59.1]} 27. Rd1 {[%clk 0:07:03.6]} 27... Rcc7 {[%clk 0:13:02.7]} 28. c5 {[%clk 0:05:49.7]} 28... Rc8 {[%clk 0:11:32.6]} 29. Nxd4 {[%clk 0:03:16]} 29... exd4 {[%clk 0:10:05.5]} 30. Kd3 {[%clk 0:03:13.9]} 30... Re8 {[%clk 0:09:39.5]} 31. Rxc6 {[%clk 0:01:50]} 31... Re3+ {[%clk 0:08:59.7]} 32. Kc4 {[%clk 0:01:50.8]} 32... Rc3+ {[%clk 0:08:26.2]} 33. Kb5 {[%clk 0:01:51]} 33... d3 {[%clk 0:08:01.6]} 34. a4 {[%clk 0:00:51.8]} 34... d2 {[%clk 0:06:41.5]} 35. Rd6 {[%clk 0:00:51.2]} 35... Rxd6 {[%clk 0:04:58.9]} 36. cxd6 {[%clk 0:00:53.1]} 36... Rd3 {[%clk 0:04:58.3]} 37. Kc6 {[%clk 0:00:53.7]} 37... Rc3+ {[%clk 0:04:51.4]} 38. Kb7 {[%clk 0:00:42.8]} 38... Rd3 {[%clk 0:04:47.6]} 39. Kxa7 {[%clk 0:00:25.8]} 39... Rxd6 {[%clk 0:04:31.4]} 40. b5 {[%clk 0:00:25.6]} 40... Rd3 {[%clk 0:04:18.5]} 41. a5 {[%clk 0:00:19]} 41... Rd5 {[%clk 0:04:13.9]} 42. Ka6 {[%clk 0:00:15.6]} 42... Kf8 {[%clk 0:04:09.1]} 43. b6 {[%clk 0:00:16.3]} 43... Ke7 {[%clk 0:04:10.1]} 44. b7 {[%clk 0:00:17.1]} 44... Rd8 {[%clk 0:04:10]} 45. Ka7 {[%clk 0:00:13.6]} 1-0

[Event "Live Chess"]
[Site "Chess.com"]
[Date "2021.04.28"]
[Round "6"]
[White "josiwales"]
[Black "MMSANCHEZ"]
[Result "1-0"]
[CurrentPosition "5Q1Q/8/6B1/p2qk3/8/7b/5P2/6K1 b - -"]
[Timezone "UTC"]
[ECO "C00"]
[ECOUrl "https://www.chess.com/openings/French-Defense-Kings-Indian-Attack-2...d5-3.Qe2-Nf6"]
[UTCDate "2021.04.28"]
[UTCTime "03:01:29"]
[WhiteElo "2494"]
[BlackElo "2141"]
[TimeControl "2100+2"]
[Termination "josiwales won by resignation"]
[StartTime "03:01:29"]
[EndDate "2021.04.28"]
[EndTime "04:13:03"]
[Link "https://www.chess.com/game/live/13317743711"]

1. e4 {[%clk 0:34:55.8]} 1... e6 {[%clk 0:34:59]} 2. d3 {[%clk 0:34:39.7]} 2... d5 {[%clk 0:34:47.5]} 3. Qe2 {[%clk 0:34:31]} 3... Nf6 {[%clk 0:34:19.3]} 4. Nf3 {[%clk 0:34:31]} 4... c5 {[%clk 0:34:13.5]} 5. e5 {[%clk 0:34:29.1]} 5... Nfd7 {[%clk 0:34:12.8]} 6. g3 {[%clk 0:34:31]} 6... Nc6 {[%clk 0:34:11.9]} 7. Bg2 {[%clk 0:34:31.9]} 7... Be7 {[%clk 0:34:11.6]} 8. h4 {[%clk 0:34:27.2]} 8... b5 {[%clk 0:32:51.2]} 9. O-O {[%clk 0:34:25.7]} 9... Qc7 {[%clk 0:32:27.1]} 10. Bf4 {[%clk 0:34:08.7]} 10... b4 {[%clk 0:30:27]} 11. h5 {[%clk 0:34:05.1]} 11... h6 {[%clk 0:30:16.4]} 12. Nbd2 {[%clk 0:34:01.6]} 12... a5 {[%clk 0:29:14.5]} 13. c4 {[%clk 0:33:58.8]} 13... bxc3 {[%clk 0:28:55.7]} 14. bxc3 {[%clk 0:33:58.3]} 14... Ba6 {[%clk 0:28:04.6]} 15. c4 {[%clk 0:33:56.7]} 15... Nb6 {[%clk 0:27:06.2]} 16. g4 {[%clk 0:33:41.2]} 16... Rd8 {[%clk 0:26:18.3]} 17. Rfc1 {[%clk 0:33:07.8]} 17... dxc4 {[%clk 0:20:34.7]} 18. dxc4 {[%clk 0:33:03.6]} 18... Nd4 {[%clk 0:20:30.9]} 19. Nxd4 {[%clk 0:32:30.3]} 19... cxd4 {[%clk 0:20:27]} 20. Qf3 {[%clk 0:26:03.1]} 20... Nd7 {[%clk 0:16:29.1]} 21. Rab1 {[%clk 0:24:49.4]} 21... O-O {[%clk 0:12:53.9]} 22. Qg3 {[%clk 0:24:12.2]} 22... Bg5 {[%clk 0:11:41.9]} 23. Nf3 {[%clk 0:22:36.6]} 23... Bxf4 {[%clk 0:11:39]} 24. Qxf4 {[%clk 0:22:35.4]} 24... d3 {[%clk 0:09:10.1]} 25. g5 {[%clk 0:21:26.1]} 25... hxg5 {[%clk 0:09:04.7]} 26. Qxg5 {[%clk 0:20:57.4]} 26... f6 {[%clk 0:08:45.1]} 27. Qg4 {[%clk 0:20:14.8]} 27... Bc8 {[%clk 0:07:51.1]} 28. Qxe6+ {[%clk 0:13:39.2]} 28... Rf7 {[%clk 0:07:05.6]} 29. exf6 {[%clk 0:07:19.2]} 29... Nxf6 {[%clk 0:07:05.5]} 30. Qe5 {[%clk 0:07:14.5]} 30... d2 {[%clk 0:06:18]} 31. Rd1 {[%clk 0:07:07.5]} 31... Qxc4 {[%clk 0:04:29.1]} 32. Nxd2 {[%clk 0:06:56.2]} 32... Qxa2 {[%clk 0:04:08]} 33. Ne4 {[%clk 0:06:08.6]} 33... Rxd1+ {[%clk 0:03:31]} 34. Rxd1 {[%clk 0:06:10.5]} 34... Nxe4 {[%clk 0:02:41.7]} 35. Rd8+ {[%clk 0:06:07.6]} 35... Rf8 {[%clk 0:02:42.6]} 36. Rxf8+ {[%clk 0:06:05.8]} 36... Kxf8 {[%clk 0:02:43.5]} 37. Bxe4 {[%clk 0:06:06.2]} 37... Be6 {[%clk 0:00:50.7]} 38. Qd6+ {[%clk 0:03:14.4]} 38... Kf7 {[%clk 0:00:51.3]} 39. Bg6+ {[%clk 0:02:36]} 39... Kf6 {[%clk 0:00:44.1]} 40. Qd4+ {[%clk 0:02:35.7]} 40... Ke7 {[%clk 0:00:19.1]} 41. Qxg7+ {[%clk 0:02:35.6]} 41... Kd6 {[%clk 0:00:19]} 42. h6 {[%clk 0:02:09.3]} 42... Qd5 {[%clk 0:00:19.7]} 43. Qf8+ {[%clk 0:01:55.7]} 43... Ke5 {[%clk 0:00:14.1]} 44. h7 {[%clk 0:01:40.3]} 44... Bh3 {[%clk 0:00:09.9]} 45. h8=Q+ {[%clk 0:01:40.3]} 1-0

[Event "Live Chess"]
[Site "Chess.com"]
[Date "2021.04.28"]
[Round "6"]
[White "coalescenet"]
[Black "FlightsOfFancy"]
[Result "0-1"]
[CurrentPosition "1k3q2/1p5p/6p1/8/PP6/4p3/3p1P2/5K2 w - -"]
[Timezone "UTC"]
[ECO "B50"]
[ECOUrl "https://www.chess.com/openings/Sicilian-Defense-Delayed-Alapin-Variation-3...Nf6"]
[UTCDate "2021.04.28"]
[UTCTime "03:01:32"]
[WhiteElo "2098"]
[BlackElo "2135"]
[TimeControl "2100+2"]
[Termination "FlightsOfFancy won by resignation"]
[StartTime "03:01:32"]
[EndDate "2021.04.28"]
[EndTime "04:14:00"]
[Link "https://www.chess.com/game/live/13317744099"]

1. e4 {[%clk 0:34:57.8]} 1... c5 {[%clk 0:34:51]} 2. Nf3 {[%clk 0:34:56.1]} 2... d6 {[%clk 0:34:50.8]} 3. c3 {[%clk 0:34:55.4]} 3... Nf6 {[%clk 0:34:33.7]} 4. h3 {[%clk 0:34:53]} 4... Nc6 {[%clk 0:33:01.9]} 5. Bd3 {[%clk 0:34:42.8]} 5... g6 {[%clk 0:31:10.6]} 6. O-O {[%clk 0:34:39.6]} 6... Bg7 {[%clk 0:30:26.2]} 7. Bc2 {[%clk 0:34:27.4]} 7... O-O {[%clk 0:29:56.8]} 8. d4 {[%clk 0:34:20.8]} 8... cxd4 {[%clk 0:28:02.3]} 9. cxd4 {[%clk 0:34:18.3]} 9... e5 {[%clk 0:27:56.7]} 10. d5 {[%clk 0:34:10.9]} 10... Nb4 {[%clk 0:27:50.7]} 11. Bb3 {[%clk 0:34:07.7]} 11... Bd7 {[%clk 0:25:32.8]} 12. Nc3 {[%clk 0:33:51.9]} 12... Rc8 {[%clk 0:25:01]} 13. Re1 {[%clk 0:32:28.8]} 13... a5 {[%clk 0:23:29.8]} 14. Qe2 {[%clk 0:31:39.4]} 14... Na6 {[%clk 0:22:37.2]} 15. Bd2 {[%clk 0:28:25.2]} 15... Nc5 {[%clk 0:22:07.5]} 16. Bc4 {[%clk 0:28:05.1]} 16... Nh5 {[%clk 0:18:51.1]} 17. Rab1 {[%clk 0:25:39.5]} 17... f5 {[%clk 0:16:57.8]} 18. Bb5 {[%clk 0:23:22.3]} 18... fxe4 {[%clk 0:15:34.8]} 19. Nxe4 {[%clk 0:23:14.8]} 19... Nxe4 {[%clk 0:14:49.8]} 20. Bxd7 {[%clk 0:23:10.8]} 20... Qxd7 {[%clk 0:14:31.1]} 21. Qxe4 {[%clk 0:23:08.2]} 21... Nf6 {[%clk 0:13:40.4]} 22. Qh4 {[%clk 0:17:36.3]} 22... Rc5 {[%clk 0:12:28.1]} 23. Rbd1 {[%clk 0:15:50.2]} 23... Nxd5 {[%clk 0:09:56]} 24. Be3 {[%clk 0:14:22.5]} 24... Nxe3 {[%clk 0:09:06]} 25. Rxe3 {[%clk 0:14:21.5]} 25... Rf4 {[%clk 0:08:08.9]} 26. Qg5 {[%clk 0:12:38.7]} 26... Bf6 {[%clk 0:06:12.8]} 27. Qg3 {[%clk 0:11:31.7]} 27... Qc6 {[%clk 0:05:58.2]} 28. h4 {[%clk 0:10:16.9]} 28... Rc1 {[%clk 0:05:32.2]} 29. Ree1 {[%clk 0:09:28.2]} 29... Rfc4 {[%clk 0:05:14.6]} 30. Qh3 {[%clk 0:08:30.3]} 30... d5 {[%clk 0:04:55.1]} 31. Rxc1 {[%clk 0:08:08.5]} 31... Rxc1 {[%clk 0:04:53.8]} 32. Rxc1 {[%clk 0:07:58.8]} 32... Qxc1+ {[%clk 0:04:51.3]} 33. Kh2 {[%clk 0:08:00.4]} 33... Qf4+ {[%clk 0:04:28.5]} 34. Kg1 {[%clk 0:07:45.4]} 34... Qc1+ {[%clk 0:04:28.6]} 35. Kh2 {[%clk 0:07:46.2]} 35... Qf4+ {[%clk 0:04:29.1]} 36. Kg1 {[%clk 0:07:46.9]} 36... Qf5 {[%clk 0:04:29.8]} 37. g4 {[%clk 0:07:04.2]} 37... Qe6 {[%clk 0:04:26.3]} 38. Qg3 {[%clk 0:06:36.3]} 38... Kf7 {[%clk 0:04:00.9]} 39. Ng5+ {[%clk 0:05:53.9]} 39... Bxg5 {[%clk 0:03:57.3]} 40. hxg5 {[%clk 0:05:55.5]} 40... Ke7 {[%clk 0:03:34.2]} 41. Qa3+ {[%clk 0:05:45.4]} 41... Kd7 {[%clk 0:03:26]} 42. Qa4+ {[%clk 0:05:25.7]} 42... Kc8 {[%clk 0:03:19.1]} 43. Qxa5 {[%clk 0:04:33.6]} 43... Qxg4+ {[%clk 0:03:17.9]} 44. Kf1 {[%clk 0:04:07.7]} 44... Qc4+ {[%clk 0:03:17.4]} 45. Kg2 {[%clk 0:04:04.9]} 45... Qe4+ {[%clk 0:03:13.2]} 46. Kg1 {[%clk 0:03:59.6]} 46... d4 {[%clk 0:03:08.6]} 47. Qc5+ {[%clk 0:03:48.2]} 47... Kd7 {[%clk 0:03:03.7]} 48. Qc4 {[%clk 0:03:06.4]} 48... Kd6 {[%clk 0:02:58.8]} 49. b4 {[%clk 0:02:51.4]} 49... Qd5 {[%clk 0:02:54.4]} 50. Qc8 {[%clk 0:02:49.7]} 50... d3 {[%clk 0:02:47.4]} 51. Qd8+ {[%clk 0:02:25.6]} 51... Kc6 {[%clk 0:02:43]} 52. Qe8+ {[%clk 0:02:06.4]} 52... Kb6 {[%clk 0:02:30]} 53. Qa4 {[%clk 0:01:31.1]} 53... d2 {[%clk 0:02:27.8]} 54. Qd1 {[%clk 0:01:32]} 54... e4 {[%clk 0:02:25.2]} 55. a4 {[%clk 0:01:27.5]} 55... Qxg5+ {[%clk 0:02:19.7]} 56. Kf1 {[%clk 0:01:28.4]} 56... Qf4 {[%clk 0:02:13.4]} 57. Qe2 {[%clk 0:01:21.7]} 57... e3 {[%clk 0:01:23.7]} 58. Qb5+ {[%clk 0:01:10.7]} 58... Kc7 {[%clk 0:01:21]} 59. Qc5+ {[%clk 0:01:01.9]} 59... Kb8 {[%clk 0:01:18.3]} 60. Qf8+ {[%clk 0:00:47.1]} 60... Qxf8 {[%clk 0:01:17.5]} 0-1

[Event "Live Chess"]
[Site "Chess.com"]
[Date "2021.04.28"]
[Round "6"]
[White "KyronGriffith"]
[Black "twangbio"]
[Result "1-0"]
[CurrentPosition "4k2r/4Q1pp/pp6/3N1q1n/8/8/PPP2PPP/1K6 b - -"]
[Timezone "UTC"]
[ECO "C47"]
[ECOUrl "https://www.chess.com/openings/Four-Knights-Game-Scotch-Variation-Accepted-5.Nxd4-d6"]
[UTCDate "2021.04.28"]
[UTCTime "03:01:43"]
[WhiteElo "2490"]
[BlackElo "1871"]
[TimeControl "2100+2"]
[Termination "KyronGriffith won by checkmate"]
[StartTime "03:01:43"]
[EndDate "2021.04.28"]
[EndTime "03:48:13"]
[Link "https://www.chess.com/game/live/13317744421"]

1. e4 {[%clk 0:35:02]} 1... e5 {[%clk 0:34:56.1]} 2. Nf3 {[%clk 0:35:01.7]} 2... Nc6 {[%clk 0:34:55]} 3. Nc3 {[%clk 0:35:02.9]} 3... Nf6 {[%clk 0:34:47.8]} 4. d4 {[%clk 0:35:03.3]} 4... exd4 {[%clk 0:34:41.8]} 5. Nxd4 {[%clk 0:35:05.2]} 5... d6 {[%clk 0:34:22.2]} 6. Bf4 {[%clk 0:33:52.1]} 6... Be7 {[%clk 0:33:31.7]} 7. Qd2 {[%clk 0:33:37.7]} 7... a6 {[%clk 0:32:17.8]} 8. O-O-O {[%clk 0:33:28.8]} 8... Nxd4 {[%clk 0:31:38.9]} 9. Qxd4 {[%clk 0:33:30.7]} 9... b6 {[%clk 0:31:27.9]} 10. Bc4 {[%clk 0:30:26.2]} 10... Bb7 {[%clk 0:29:25.3]} 11. e5 {[%clk 0:29:41.3]} 11... Nh5 {[%clk 0:27:53.8]} 12. exd6 {[%clk 0:29:04.8]} 12... Bxd6 {[%clk 0:24:58.1]} 13. Bxd6 {[%clk 0:27:48.9]} 13... Qxd6 {[%clk 0:22:52]} 14. Bxf7+ {[%clk 0:27:38]} 14... Kxf7 {[%clk 0:22:04]} 15. Qc4+ {[%clk 0:27:35.6]} 15... Qe6 {[%clk 0:19:18.2]} 16. Qxc7+ {[%clk 0:27:09.5]} 16... Kf8 {[%clk 0:17:46.8]} 17. Rhe1 {[%clk 0:26:10]} 17... Qh6+ {[%clk 0:12:39.1]} 18. Kb1 {[%clk 0:25:59.9]} 18... Qf6 {[%clk 0:10:29.2]} 19. Qxb7 {[%clk 0:25:45.1]} 19... Rd8 {[%clk 0:09:09.9]} 20. Nd5 {[%clk 0:24:58]} 20... Qd6 {[%clk 0:06:30.4]} 21. Re7 {[%clk 0:24:51.4]} 21... Qg6 {[%clk 0:05:20.4]} 22. Rde1 {[%clk 0:23:46.2]} 22... Qf5 {[%clk 0:03:27.2]} 23. Re8+ {[%clk 0:23:34.4]} 23... Rxe8 {[%clk 0:02:15.3]} 24. Rxe8+ {[%clk 0:23:36.3]} 24... Kxe8 {[%clk 0:01:42.1]} 25. Qe7# {[%clk 0:23:38.2]} 1-0

[Event "Live Chess"]
[Site "Chess.com"]
[Date "2021.04.28"]
[Round "6"]
[White "kingandqueen2017"]
[Black "Joseph_Truelsons_Fan"]
[Result "1-0"]
[CurrentPosition "8/8/1p1kp3/2p2rRp/2P1KPpP/1P4P1/8/8 b - -"]
[Timezone "UTC"]
[ECO "E80"]
[ECOUrl "https://www.chess.com/openings/Kings-Indian-Defense-Samisch-Variation...6.dxc5-dxc5-7.Qxd8-Kxd8"]
[UTCDate "2021.04.28"]
[UTCTime "03:01:39"]
[WhiteElo "2344"]
[BlackElo "1812"]
[TimeControl "2100+2"]
[Termination "kingandqueen2017 won by resignation"]
[StartTime "03:01:39"]
[EndDate "2021.04.28"]
[EndTime "03:33:59"]
[Link "https://www.chess.com/game/live/13317744747"]

1. d4 {[%clk 0:34:57.6]} 1... Nf6 {[%clk 0:34:55.5]} 2. c4 {[%clk 0:34:57.8]} 2... g6 {[%clk 0:34:55.6]} 3. Nc3 {[%clk 0:34:56.3]} 3... Bg7 {[%clk 0:34:56.1]} 4. e4 {[%clk 0:34:56.5]} 4... d6 {[%clk 0:34:56.8]} 5. f3 {[%clk 0:34:48.7]} 5... c5 {[%clk 0:34:45.5]} 6. dxc5 {[%clk 0:34:17.8]} 6... dxc5 {[%clk 0:34:39.5]} 7. Qxd8+ {[%clk 0:34:11.6]} 7... Kxd8 {[%clk 0:34:41.4]} 8. Be3 {[%clk 0:34:09.3]} 8... b6 {[%clk 0:34:31]} 9. e5 {[%clk 0:33:16]} 9... Nfd7 {[%clk 0:34:00.3]} 10. f4 {[%clk 0:33:15.7]} 10... Nc6 {[%clk 0:32:01.1]} 11. Rd1 {[%clk 0:32:46.9]} 11... e6 {[%clk 0:31:19.6]} 12. Ne4 {[%clk 0:32:36.2]} 12... Ke7 {[%clk 0:30:31.8]} 13. Nf3 {[%clk 0:32:19.4]} 13... f6 {[%clk 0:29:55.6]} 14. exf6+ {[%clk 0:31:22.9]} 14... Nxf6 {[%clk 0:29:51.2]} 15. Nxf6 {[%clk 0:31:17.1]} 15... Bxf6 {[%clk 0:29:44.1]} 16. b3 {[%clk 0:31:04.2]} 16... Nb4 {[%clk 0:29:17.5]} 17. a3 {[%clk 0:27:33.3]} 17... Nc2+ {[%clk 0:29:04.7]} 18. Kd2 {[%clk 0:27:32.8]} 18... Nxe3 {[%clk 0:29:03.7]} 19. Kxe3 {[%clk 0:27:29.5]} 19... Bb7 {[%clk 0:28:56.8]} 20. Bd3 {[%clk 0:27:16.8]} 20... Rad8 {[%clk 0:28:29.5]} 21. Be4 {[%clk 0:26:26.5]} 21... Bxe4 {[%clk 0:27:42.3]} 22. Kxe4 {[%clk 0:26:26.4]} 22... Bb2 {[%clk 0:27:30.1]} 23. a4 {[%clk 0:25:47.5]} 23... Rhf8 {[%clk 0:27:06.7]} 24. g3 {[%clk 0:25:25]} 24... h6 {[%clk 0:26:21.8]} 25. Ne5 {[%clk 0:22:56.1]} 25... Bxe5 {[%clk 0:26:02.9]} 26. Kxe5 {[%clk 0:22:47.1]} 26... Rf5+ {[%clk 0:25:52.7]} 27. Ke4 {[%clk 0:22:45.7]} 27... h5 {[%clk 0:25:21.8]} 28. Rxd8 {[%clk 0:21:46.7]} 28... Kxd8 {[%clk 0:25:17.9]} 29. h3 {[%clk 0:21:45.2]} 29... g5 {[%clk 0:24:56.3]} 30. h4 {[%clk 0:20:20.7]} 30... g4 {[%clk 0:24:40.7]} 31. a5 {[%clk 0:20:09.8]} 31... Kc7 {[%clk 0:24:23]} 32. axb6+ {[%clk 0:20:01.5]} 32... axb6 {[%clk 0:24:23.2]} 33. Ra1 {[%clk 0:19:58.7]} 33... Kb7 {[%clk 0:23:38.5]} 34. Rd1 {[%clk 0:19:57.4]} 34... Kc7 {[%clk 0:23:36.5]} 35. Re1 {[%clk 0:18:53.1]} 35... Kd7 {[%clk 0:23:15.4]} 36. Ra1 {[%clk 0:17:57]} 36... Kc6 {[%clk 0:23:06.9]} 37. Ra8 {[%clk 0:17:55.5]} 37... Kd7 {[%clk 0:23:00.9]} 38. Rg8 {[%clk 0:17:49.4]} 38... Kd6 {[%clk 0:22:52.6]} 39. Rg5 {[%clk 0:17:49.4]} 1-0